fUSD/lending_fUSD_20241104
["ID","MTS","AMOUNT","RATE_DAILY","PERIOD"]
[341238414,1730711461692,-500.0,0.00042261,2]
[341238415,1730711461702,-500.0,0.00042261,2]
[341238416,1730711461711,-500.0,0.00042261,2]
[341238417,1730711461722,-500.0,0.00042261,2]
[341238418,1730711461732,-500.0,0.00042261,2]
[341238419,1730711461742,-500.0,0.00042261,2]
[341238420,1730711461752,-500.0,0.00042261,2]
[341238421,1730711461763,-500.0,0.00042261,2]
[341238422,1730711461778,-500.0,0.00042261,2]
[341238423,1730711461789,-500.0,0.00042261,2]
[341238424,1730711461799,-500.0,0.00042261,2]
[341238425,1730711461808,-500.0,0.00042261,2]
[341238426,1730711461817,-500.0,0.00042261,2]
[341238427,1730711461826,-629.53872339,0.00042261,2]
[341238428,1730711461835,-500.0,0.00042261,2]
[341238429,1730711461844,-150.0,0.00042302,30]
[341238430,1730711461857,-500.0,0.00042361,2]
[341238431,1730711461866,-500.0,0.00042361,2]
[341238432,1730711461875,-500.0,0.00042361,2]
[341238433,1730711461884,-1533.19,0.00042361,2]
[341238434,1730711461893,-240.65509035,0.00042361,2]
[341238435,1730711461902,-500.0,0.00042361,2]
[341238436,1730711461911,-500.0,0.00042361,2]
[341238437,1730711461920,-200.0,0.00042361,2]
[341238438,1730711461930,-158.19181683,0.00042361,2]
[341238439,1730711461939,-543.78909179,0.00042361,2]
[341238440,1730711461949,-500.0,0.00042361,2]
[341238441,1730711461958,-563.40178515,0.00042361,2]
[341238442,1730711461967,-528.6312482,0.00042361,2]
[341238443,1730711461977,-500.0,0.00042361,2]
[341238444,1730711461986,-162.85202614,0.00042361,2]
[341238445,1730711461996,-691.73,0.00042361,2]
[341238446,1730711462005,-500.0,0.00042361,2]
[341238447,1730711462020,-500.0,0.00042361,2]
[341238448,1730711462029,-635.87,0.00042361,2]
[341238449,1730711462039,-500.0,0.00042361,2]
[341238450,1730711462049,-500.0,0.00042361,2]
[341238451,1730711462058,-500.0,0.00042361,2]
[341238452,1730711462068,-461.80985949,0.00042361,2]
[341238453,1730711462078,-500.0,0.00042361,2]
[341238454,1730711462087,-640.26722297,0.00042361,2]
[341238455,1730711462096,-331.85849141,0.00042361,2]
[341238456,1730711462105,-500.0,0.00042361,2]
[341238457,1730711462115,-150.0,0.00042414,30]
[341238458,1730711462125,-500.0,0.0004244,2]
[341238459,1730711462135,-500.0,0.0004244,2]
[341238460,1730711462143,-769.94,0.0004244,2]
[341238461,1730711462154,-561.39706538,0.0004244,2]
[341238462,1730711462165,-500.0,0.0004244,2]
[341238463,1730711462174,-500.0,0.0004244,2]
[341238464,1730711462183,-503.82,0.0004244,2]
[341238465,1730711462193,-660.29,0.0004244,2]
[341238466,1730711462202,-500.0,0.0004244,2]
[341238467,1730711462211,-500.0,0.0004244,2]
[341238468,1730711462221,-500.0,0.0004244,2]
[341238469,1730711462231,-652.9,0.0004244,2]
[341238470,1730711462240,-500.0,0.0004244,2]
[341238471,1730711462249,-191.01518393,0.0004244,2]
[341238472,1730711462260,-500.0,0.0004244,2]
[341238473,1730711462273,-500.0,0.0004244,2]
[341238474,1730711462283,-500.0,0.0004244,2]
[341238475,1730711462292,-1934.72,0.0004244,2]
[341238476,1730711462302,-500.0,0.0004244,2]
[341238477,1730711462311,-500.0,0.0004244,2]
[341238478,1730711462320,-629.56240182,0.0004244,2]
[341238479,1730711462330,-500.0,0.0004244,2]
[341238480,1730711462339,-597.19560051,0.0004244,2]
[341238481,1730711462348,-1674.51,0.0004244,2]
[341238482,1730711462357,-500.0,0.0004244,2]
[341238483,1730711462367,-684.44,0.00042465,2]
[341238484,1730711462376,-500.0,0.00042465,2]
[341238485,1730711462385,-3994.7,0.00042465,2]
[341238486,1730711462395,-1882.57,0.00042465,2]
[341238487,1730711462404,-500.0,0.00042465,2]
[341238488,1730711462413,-500.0,0.00042465,2]
[341238489,1730711462423,-1176.28,0.00042465,2]
[341238490,1730711462432,-5855.7,0.00042465,2]
[341238491,1730711462443,-1152.43,0.00042465,2]
[341238492,1730711462452,-1681.01,0.00042465,2]
[341238493,1730711462461,-1398.78,0.00042465,2]
[341238494,1730711462471,-1238.48,0.00042465,2]
[341238495,1730711462480,-1242.24,0.00042465,2]
[341238496,1730711462490,-3905.42,0.00042465,2]
[341238497,1730711462500,-170.2348604,0.00042465,2]
[341238498,1730711462509,-628.53282129,0.00042465,2]
[341238499,1730711462521,-150.0,0.00042488,30]
[341238500,1730711462530,-500.0,0.00042505,120]
[341238501,1730711462540,-500.0,0.00042535,2]
[341238502,1730711462549,-637.21281779,0.00042535,2]
[341238503,1730711462558,-500.0,0.00042535,2]
[341238504,1730711462567,-500.0,0.00042535,2]
[341238505,1730711462576,-500.0,0.00042535,2]
[341238506,1730711462585,-500.0,0.00042535,2]
[341238507,1730711462594,-500.0,0.00042535,2]
[341238508,1730711462604,-635.97348292,0.00042535,2]
[341238509,1730711462613,-500.0,0.00042535,2]
[341238510,1730711462622,-500.0,0.00042535,2]
[341238511,1730711462632,-500.0,0.00042535,2]
[341238512,1730711462641,-601.23406124,0.00042535,2]
[341238513,1730711462651,-500.0,0.00042535,2]
[341238514,1730711462660,-250.0,0.00042535,2]
[341238515,1730711462669,-192.76747694,0.00042535,2]
[341238516,1730711462678,-500.0,0.00042535,2]
[341238517,1730711462688,-185.49547333,0.00042535,2]
[341238518,1730711462699,-500.0,0.00042535,2]
[341238519,1730711462708,-500.0,0.00042535,2]
[341238520,1730711462717,-500.0,0.00042535,2]
[341238521,1730711462727,-500.0,0.00042535,2]
[341238522,1730711462736,-500.0,0.00042535,2]
[341238523,1730711462745,-500.0,0.00042535,2]
[341238524,1730711462755,-500.0,0.00042535,2]
[341238525,1730711462766,-500.0,0.00042535,2]
[341238526,1730711462776,-500.0,0.00042535,2]
[341238527,1730711462786,-500.0,0.00042535,2]
[341238528,1730711462795,-500.0,0.00042535,2]
[341238529,1730711462805,-500.0,0.00042535,2]
[341238530,1730711462814,-500.0,0.00042535,2]
[341238531,1730711462823,-500.0,0.00042535,2]
[341238532,1730711462832,-150.0,0.00042535,2]
[341238533,1730711462842,-500.0,0.00042535,2]
[341238534,1730711462852,-500.0,0.00042535,2]
[341238535,1730711462861,-500.0,0.00042535,2]
[341238536,1730711462874,-500.0,0.00042535,2]
[341238537,1730711462887,-500.0,0.00042535,2]
[341238538,1730711462896,-500.0,0.00042535,2]
[341238539,1730711462905,-500.0,0.00042535,2]
[341238540,1730711462916,-500.0,0.00042535,2]
[341238541,1730711462926,-624.74586685,0.00042535,2]
[341238542,1730711462935,-546.12131854,0.00042535,2]
[341238543,1730711462945,-596.66834697,0.00042535,2]
[341238544,1730711462957,-500.0,0.00042535,2]
[341238545,1730711462967,-451.7091695,0.00042535,2]
[341238546,1730711462977,-500.0,0.00042535,2]
[341238547,1730711462987,-534.22,0.00042535,2]
[341238548,1730711462996,-500.0,0.00042535,2]
[341238549,1730711463005,-500.0,0.00042535,2]
[341238550,1730711463017,-185.24214669,0.00042535,2]
[341238551,1730711463027,-500.0,0.00042535,2]
[341238552,1730711463037,-500.0,0.00042535,2]
[341238553,1730711463046,-500.0,0.00042535,2]
[341238554,1730711463057,-600.68412006,0.00042535,2]
[341238555,1730711463067,-570.53303229,0.00042535,2]
[341238556,1730711463077,-500.0,0.00042535,2]
[341238557,1730711463086,-613.33720285,0.00042535,2]
[341238558,1730711463096,-500.0,0.00042535,2]
[341238559,1730711463106,-158.86728197,0.00042535,2]
[341238560,1730711463115,-500.0,0.00042535,2]
[341238561,1730711463125,-500.0,0.00042535,2]
[341238562,1730711463135,-500.0,0.00042535,2]
[341238563,1730711463144,-1016.33,0.00042535,2]
[341238564,1730711463154,-1154.26,0.00042535,2]
[341238565,1730711463164,-500.0,0.00042535,2]
[341238566,1730711463175,-500.0,0.00042535,2]
[341238567,1730711463185,-10956.67,0.00042535,2]
[341238568,1730711463194,-500.0,0.00042535,2]
[341238569,1730711463204,-677.22,0.00042535,2]
[341238570,1730711463214,-500.0,0.00042535,2]
[341238571,1730711463224,-500.0,0.00042535,2]
[341238572,1730711463233,-541.49557246,0.00042535,2]
[341238573,1730711463243,-500.0,0.00042535,2]
[341238574,1730711463330,-500.0,0.00042535,2]
[341238575,1730711463340,-500.0,0.00042535,2]
[341238576,1730711463349,-500.0,0.00042535,2]
[341238577,1730711463359,-247.14637272,0.00042535,2]
[341238578,1730711463368,-500.0,0.00042535,2]
[341238579,1730711463378,-500.0,0.00042535,2]
[341238580,1730711463387,-500.0,0.00042535,2]
[341238581,1730711463396,-500.0,0.00042535,2]
[341238582,1730711463406,-500.0,0.00042535,2]
[341238583,1730711463416,-500.0,0.00042535,2]
[341238584,1730711463425,-500.0,0.00042535,2]
[341238585,1730711463434,-1011.7,0.00042535,2]
[341238586,1730711463443,-500.0,0.00042535,2]
[341238587,1730711463452,-500.0,0.00042535,2]
[341238588,1730711463462,-500.0,0.00042535,2]
[341238589,1730711463471,-500.0,0.00042535,2]
[341238590,1730711463481,-500.0,0.00042535,2]
[341238591,1730711463491,-500.0,0.00042535,2]
[341238592,1730711463500,-500.0,0.00042535,2]
[341238593,1730711463510,-323.10387298,0.00042535,2]
[341238594,1730711463521,-500.0,0.00042535,2]
[341238595,1730711463530,-500.0,0.00042535,2]
[341238596,1730711463539,-500.0,0.00042535,2]
[341238597,1730711463549,-500.0,0.00042535,2]
[341238598,1730711463558,-500.0,0.00042535,2]
[341238599,1730711463567,-500.0,0.00042535,2]
[341238600,1730711463576,-458.50888051,0.00042535,2]
[341238601,1730711463586,-6574.49089673,0.00042538,6]
[341238602,1730711463595,-500.0,0.00042635,2]
[341238603,1730711463604,-359.93881115,0.00042635,2]
[341238604,1730711463613,-500.0,0.00042635,2]
[341238605,1730711463623,-1533.19,0.00042635,2]
[341238606,1730711463632,-500.0,0.00042635,2]
[341238607,1730711463641,-500.0,0.00042635,2]
[341238608,1730711463650,-203.54962947,0.00042635,2]
[341238609,1730711463661,-500.0,0.00042635,2]
[341238610,1730711463670,-500.0,0.00042635,2]
[341238611,1730711463680,-691.73,0.00042635,2]
[341238612,1730711463690,-500.0,0.00042635,2]
[341238613,1730711463699,-500.0,0.00042635,2]
[341238614,1730711463709,-635.87,0.00042635,2]
[341238615,1730711463719,-500.0,0.00042635,2]
[341238616,1730711463728,-500.0,0.00042635,2]
[341238617,1730711463738,-532.83259189,0.00042635,2]
[341238618,1730711463747,-500.0,0.00042635,2]
[341238619,1730711463757,-338.13270949,0.00042635,2]
[341238620,1730711463767,-150.0,0.00042675,30]
[341238621,1730711463776,-164.037,0.0004271,15]
[341238622,1730711463785,-500.0,0.00042714,2]
[341238623,1730711463794,-500.0,0.00042714,2]
[341238624,1730711463803,-769.94,0.00042714,2]
[341238625,1730711463812,-500.0,0.00042714,2]
[341238626,1730711463822,-500.0,0.00042714,2]
[341238627,1730711463831,-503.82,0.00042714,2]
[341238628,1730711463841,-660.29,0.00042714,2]
[341238629,1730711463850,-500.0,0.00042714,2]
[341238630,1730711463859,-500.0,0.00042714,2]
[341238631,1730711463869,-500.0,0.00042714,2]
[341238632,1730711463878,-652.9,0.00042714,2]
[341238633,1730711463888,-500.0,0.00042714,2]
[341238634,1730711463897,-500.0,0.00042714,2]
[341238635,1730711463907,-500.0,0.00042714,2]
[341238636,1730711463916,-500.0,0.00042714,2]
[341238637,1730711463926,-1934.72,0.00042714,2]
[341238638,1730711463935,-500.0,0.00042714,2]
[341238639,1730711463945,-500.0,0.00042714,2]
[341238640,1730711463954,-500.0,0.00042714,2]
[341238641,1730711463964,-1674.51,0.00042714,2]
[341238642,1730711463973,-500.0,0.00042714,2]
[341238643,1730711463983,-684.44,0.00042739,2]
[341238644,1730711463992,-500.0,0.00042739,2]
[341238645,1730711464001,-3994.7,0.00042739,2]
[341238646,1730711464011,-1882.57,0.00042739,2]
[341238647,1730711464024,-599.49623541,0.00042739,2]
[341238648,1730711464033,-500.0,0.00042739,2]
[341238649,1730711464043,-1176.28,0.00042739,2]
[341238650,1730711464052,-5855.7,0.00042739,2]
[341238651,1730711464062,-1152.43,0.00042739,2]
[341238652,1730711464072,-1681.01,0.00042739,2]
[341238653,1730711464082,-1398.78,0.00042739,2]
[341238654,1730711464091,-1238.48,0.00042739,2]
[341238655,1730711464101,-1242.24,0.00042739,2]
[341238656,1730711464111,-3905.42,0.00042739,2]
[341238657,1730711464122,-5800.0,0.00042791,7]
[341238658,1730711464131,-5800.0,0.00042799,7]
[341238659,1730711464141,-500.0,0.00042809,2]
[341238660,1730711464150,-500.0,0.00042809,2]
[341238661,1730711464160,-500.0,0.00042809,2]
[341238662,1730711464171,-500.0,0.00042809,2]
[341238663,1730711464181,-500.0,0.00042809,2]
[341238664,1730711464191,-500.0,0.00042809,2]
[341238665,1730711464201,-500.0,0.00042809,2]
[341238666,1730711464211,-423.04112116,0.00042809,2]
[341238667,1730711464221,-500.0,0.00042809,2]
[341238668,1730711464231,-500.0,0.00042809,2]
[341238669,1730711464240,-250.0,0.00042809,2]
[341238670,1730711464250,-500.0,0.00042809,2]
[341238671,1730711464259,-501.75871799,0.00042809,2]
[341238672,1730711464271,-500.0,0.00042809,2]
[341238673,1730711464280,-500.0,0.00042809,2]
[341238674,1730711464290,-500.0,0.00042809,2]
[341238675,1730711464299,-500.0,0.00042809,2]
[341238676,1730711464309,-500.0,0.00042809,2]
[341238677,1730711464319,-500.0,0.00042809,2]
[341238678,1730711464328,-500.0,0.00042809,2]
[341238679,1730711464338,-500.0,0.00042809,2]
[341238680,1730711464347,-500.0,0.00042809,2]
[341238681,1730711464357,-500.0,0.00042809,2]
[341238682,1730711464366,-500.0,0.00042809,2]
[341238683,1730711464375,-500.0,0.00042809,2]
[341238684,1730711464385,-500.0,0.00042809,2]
[341238685,1730711464395,-150.0,0.00042809,2]
[341238686,1730711464404,-500.0,0.00042809,2]
[341238687,1730711464413,-500.0,0.00042809,2]
[341238688,1730711464423,-534.1904861,0.00042809,2]
[341238689,1730711464432,-500.0,0.00042809,2]
[341238690,1730711464442,-500.0,0.00042809,2]
[341238691,1730711464451,-500.0,0.00042809,2]
[341238692,1730711464460,-500.0,0.00042809,2]
[341238693,1730711464469,-500.0,0.00042809,2]
[341238694,1730711464479,-500.0,0.00042809,2]
[341238695,1730711464488,-500.0,0.00042809,2]
[341238696,1730711464497,-534.22,0.00042809,2]
[341238697,1730711464506,-528.37043876,0.00042809,2]
[341238698,1730711464517,-500.0,0.00042809,2]
[341238699,1730711464527,-500.0,0.00042809,2]
[341238700,1730711464536,-500.0,0.00042809,2]
[341238701,1730711464545,-300.97214509,0.00042809,2]
[341238702,1730711464555,-500.0,0.00042809,2]
[341238703,1730711464565,-579.60905107,0.00042809,2]
[341238704,1730711464575,-500.0,0.00042809,2]
[341238705,1730711464585,-500.0,0.00042809,2]
[341238706,1730711464594,-454.48838986,0.00042809,2]
[341238707,1730711464603,-1016.33,0.00042809,2]
[341238708,1730711464612,-1154.26,0.00042809,2]
[341238709,1730711464622,-500.0,0.00042809,2]
[341238710,1730711464631,-500.0,0.00042809,2]
[341238711,1730711464641,-10956.67,0.00042809,2]
[341238712,1730711464650,-500.0,0.00042809,2]
[341238713,1730711464659,-677.22,0.00042809,2]
[341238714,1730711464669,-500.0,0.00042809,2]
[341238715,1730711464678,-500.0,0.00042809,2]
[341238716,1730711464687,-500.0,0.00042809,2]
[341238717,1730711464696,-500.0,0.00042809,2]
[341238718,1730711464705,-500.0,0.00042809,2]
[341238719,1730711464715,-500.0,0.00042809,2]
[341238720,1730711464724,-500.0,0.00042809,2]
[341238721,1730711464734,-500.0,0.00042809,2]
[341238722,1730711464743,-500.0,0.00042809,2]
[341238723,1730711464826,-500.0,0.00042809,2]
[341238724,1730711464836,-500.0,0.00042809,2]
[341238725,1730711464846,-317.41459818,0.00042809,2]
[341238726,1730711464855,-500.0,0.00042809,2]
[341238727,1730711464864,-1011.7,0.00042809,2]
[341238728,1730711464876,-500.0,0.00042809,2]
[341238729,1730711464886,-500.0,0.00042809,2]
[341238730,1730711464895,-500.0,0.00042809,2]
[341238731,1730711464905,-500.0,0.00042809,2]
[341238732,1730711464916,-500.0,0.00042809,2]
[341238733,1730711464925,-500.0,0.00042809,2]
[341238734,1730711464935,-267.15083728,0.00042809,2]
[341238735,1730711464948,-500.0,0.00042809,2]
[341238736,1730711464958,-500.0,0.00042809,2]
[341238737,1730711464968,-500.0,0.00042809,2]
[341238738,1730711464977,-543.08852971,0.00042809,2]
[341238739,1730711464987,-500.0,0.00042809,2]
[341238740,1730711464997,-150.0,0.00042861,30]
[341238741,1730711465007,-500.0,0.00042909,2]
[341238742,1730711465017,-500.0,0.00042909,2]
[341238743,1730711465027,-1533.19,0.00042909,2]
[341238744,1730711465036,-500.0,0.00042909,2]
[341238745,1730711465045,-266.50500542,0.00042909,2]
[341238746,1730711465055,-500.0,0.00042909,2]
[341238747,1730711465065,-500.0,0.00042909,2]
[341238748,1730711465074,-691.73,0.00042909,2]
[341238749,1730711465084,-500.0,0.00042909,2]
[341238750,1730711465093,-167.06061692,0.00042909,2]
[341238751,1730711465103,-635.87,0.00042909,2]
[341238752,1730711465114,-565.28988662,0.00042909,2]
[341238753,1730711465123,-500.0,0.00042909,2]
[341238754,1730711465134,-500.0,0.00042909,2]
[341238755,1730711465143,-150.0,0.00042936,30]
[341238756,1730711465152,-500.0,0.00042988,2]
[341238757,1730711465163,-500.0,0.00042988,2]
[341238758,1730711465173,-769.94,0.00042988,2]
[341238759,1730711465183,-500.0,0.00042988,2]
[341238760,1730711465192,-500.0,0.00042988,2]
[341238761,1730711465202,-503.82,0.00042988,2]
[341238762,1730711465212,-660.29,0.00042988,2]
[341238763,1730711465222,-500.0,0.00042988,2]
[341238764,1730711465231,-500.0,0.00042988,2]
[341238765,1730711465241,-317.03882766,0.00042988,2]
[341238766,1730711465251,-652.9,0.00042988,2]
[341238767,1730711465260,-500.0,0.00042988,2]
[341238768,1730711465274,-500.0,0.00042988,2]
[341238769,1730711465284,-500.0,0.00042988,2]
[341238770,1730711465293,-500.0,0.00042988,2]
[341238771,1730711465304,-1934.72,0.00042988,2]
[341238772,1730711465313,-500.0,0.00042988,2]
[341238773,1730711465323,-500.0,0.00042988,2]
[341238774,1730711465334,-500.0,0.00042988,2]
[341238775,1730711465344,-1674.51,0.00042988,2]
[341238776,1730711465353,-500.0,0.00042988,2]
[341238777,1730711465362,-1597.12119163,0.00043,60]
[341238778,1730711465371,-684.44,0.00043013,2]
[341238779,1730711465381,-500.0,0.00043013,2]
[341238780,1730711465390,-3994.7,0.00043013,2]
[341238781,1730711465400,-1882.57,0.00043013,2]
[341238782,1730711465410,-500.0,0.00043013,2]
[341238783,1730711465419,-1176.28,0.00043013,2]
[341238784,1730711465429,-5855.7,0.00043013,2]
[341238785,1730711465438,-1152.43,0.00043013,2]
[341238786,1730711465448,-1681.01,0.00043013,2]
[341238787,1730711465459,-1398.78,0.00043013,2]
[341238788,1730711465468,-1238.48,0.00043013,2]
[341238789,1730711465478,-1242.24,0.00043013,2]
[341238790,1730711465487,-3905.42,0.00043013,2]
[341238791,1730711465496,-150.0,0.00043048,30]
[341238792,1730711465505,-152.0,0.00043051,3]
[341238793,1730711465514,-500.0,0.00043083,2]
[341238794,1730711465524,-500.0,0.00043083,2]
[341238795,1730711465533,-500.0,0.00043083,2]
[341238796,1730711465543,-219.50397637,0.00043083,2]
[341238797,1730711465552,-500.0,0.00043083,2]
[341238798,1730711465564,-500.0,0.00043083,2]
[341238799,1730711465573,-500.0,0.00043083,2]
[341238800,1730711465583,-500.0,0.00043083,2]
[341238801,1730711465592,-500.0,0.00043083,2]
[341238802,1730711465602,-250.0,0.00043083,2]
[341238803,1730711465611,-500.0,0.00043083,2]
[341238804,1730711465623,-562.59068379,0.00043083,2]
[341238805,1730711465632,-500.0,0.00043083,2]
[341238806,1730711465641,-500.0,0.00043083,2]
[341238807,1730711465651,-500.0,0.00043083,2]
[341238808,1730711465661,-487.57555122,0.00043083,2]
[341238809,1730711465671,-500.0,0.00043083,2]
[341238810,1730711465680,-500.0,0.00043083,2]
[341238811,1730711465689,-500.0,0.00043083,2]
[341238812,1730711465699,-500.0,0.00043083,2]
[341238813,1730711465709,-500.0,0.00043083,2]
[341238814,1730711465719,-500.0,0.00043083,2]
[341238815,1730711465729,-500.0,0.00043083,2]
[341238816,1730711465739,-308.39173494,0.00043083,2]
[341238817,1730711465748,-150.0,0.00043083,2]
[341238818,1730711465759,-500.0,0.00043083,2]
[341238819,1730711465771,-500.0,0.00043083,2]
[341238820,1730711465779,-500.0,0.00043083,2]
[341238821,1730711465789,-500.0,0.00043083,2]
[341238822,1730711465798,-500.0,0.00043083,2]
[341238823,1730711465807,-500.0,0.00043083,2]
[341238824,1730711465816,-500.0,0.00043083,2]
[341238825,1730711465826,-540.50504081,0.00043083,2]
[341238826,1730711465836,-500.0,0.00043083,2]
[341238827,1730711465845,-534.22,0.00043083,2]
[341238828,1730711465854,-528.80280538,0.00043083,2]
[341238829,1730711465864,-500.0,0.00043083,2]
[341238830,1730711465873,-500.0,0.00043083,2]
[341238831,1730711465882,-500.0,0.00043083,2]
[341238832,1730711465891,-500.0,0.00043083,2]
[341238833,1730711465900,-500.0,0.00043083,2]
[341238834,1730711465909,-1016.33,0.00043083,2]
[341238835,1730711465918,-1154.26,0.00043083,2]
[341238836,1730711465928,-500.0,0.00043083,2]
[341238837,1730711465938,-500.0,0.00043083,2]
[341238838,1730711465947,-10956.67,0.00043083,2]
[341238839,1730711465957,-500.0,0.00043083,2]
[341238840,1730711465967,-677.22,0.00043083,2]
[341238841,1730711465976,-304.82915938,0.00043083,2]
[341238842,1730711465986,-500.0,0.00043083,2]
[341238843,1730711465995,-500.0,0.00043083,2]
[341238844,1730711466004,-555.32592838,0.00043083,2]
[341238845,1730711466013,-500.0,0.00043083,2]
[341238846,1730711466026,-232.36390622,0.00043083,2]
[341238847,1730711466035,-500.0,0.00043083,2]
[341238848,1730711466044,-500.0,0.00043083,2]
[341238849,1730711466053,-500.0,0.00043083,2]
[341238850,1730711466062,-500.0,0.00043083,2]
[341238851,1730711466072,-492.17904314,0.00043083,2]
[341238852,1730711466082,-500.0,0.00043083,2]
[341238853,1730711466091,-1011.7,0.00043083,2]
[341238854,1730711466100,-500.0,0.00043083,2]
[341238855,1730711466110,-500.0,0.00043083,2]
[341238856,1730711466120,-500.0,0.00043083,2]
[341238857,1730711466130,-500.0,0.00043083,2]
[341238858,1730711466140,-500.0,0.00043083,2]
[341238859,1730711466150,-246.75506806,0.00043083,2]
[341238860,1730711466160,-500.0,0.00043083,2]
[341238861,1730711466243,-500.0,0.00043083,2]
[341238862,1730711466252,-500.0,0.00043083,2]
[341238863,1730711466262,-572.58575199,0.00043083,2]
[341238864,1730711466273,-200.0,0.00043103,7]
[341238865,1730711466282,-200.0,0.0004312,7]
[341238866,1730711466291,-200.0,0.00043135,7]
[341238867,1730711466300,-500.0,0.00043147,2]
[341238868,1730711466309,-682.23,0.00043148,2]
[341238869,1730711466319,-500.0,0.00043148,2]
[341238870,1730711466328,-500.0,0.00043148,2]
[341238871,1730711466337,-500.0,0.00043148,2]
[341238872,1730711466347,-534.5,0.00043148,2]
[341238873,1730711466359,-619.75223068,0.00043148,2]
[341238874,1730711466369,-500.0,0.00043148,2]
[341238875,1730711466379,-500.0,0.00043148,2]
[341238876,1730711466388,-500.0,0.00043148,2]
[341238877,1730711466397,-541.89879875,0.00043148,2]
[341238878,1730711466406,-662.99,0.00043148,2]
[341238879,1730711466416,-500.0,0.00043148,2]
[341238880,1730711466425,-572.07,0.00043148,2]
[341238881,1730711466436,-500.0,0.00043148,2]
[341238882,1730711466445,-500.0,0.00043148,2]
[341238883,1730711466454,-500.0,0.00043148,2]
[341238884,1730711466463,-500.0,0.00043148,2]
[341238885,1730711466472,-500.0,0.00043148,2]
[341238886,1730711466481,-500.0,0.00043148,2]
[341238887,1730711466490,-217.85466043,0.00043148,2]
[341238888,1730711466499,-607.97170512,0.00043148,2]
[341238889,1730711466508,-500.0,0.00043148,2]
[341238890,1730711466516,-500.0,0.00043148,2]
[341238891,1730711466529,-529.9518257,0.00043148,2]
[341238892,1730711466538,-571.44418594,0.00043148,2]
[341238893,1730711466547,-500.0,0.00043148,2]
[341238894,1730711466556,-500.0,0.00043148,2]
[341238895,1730711466565,-500.0,0.00043148,2]
[341238896,1730711466574,-500.0,0.00043148,2]
[341238897,1730711466583,-500.0,0.00043148,2]
[341238898,1730711466592,-500.0,0.00043148,2]
[341238899,1730711466601,-500.0,0.00043148,2]
[341238900,1730711466610,-500.0,0.00043148,2]
[341238901,1730711466618,-500.0,0.00043148,2]
[341238902,1730711466627,-500.0,0.00043148,2]
[341238903,1730711466636,-300.0,0.00043148,2]
[341238904,1730711466646,-500.0,0.00043148,2]
[341238905,1730711466655,-593.62696102,0.00043148,2]
[341238906,1730711466663,-500.0,0.00043148,2]
[341238907,1730711466672,-500.0,0.00043148,2]
[341238908,1730711466681,-500.0,0.00043148,2]
[341238909,1730711466689,-500.0,0.00043148,2]
[341238910,1730711466698,-500.0,0.00043148,2]
[341238911,1730711466708,-500.0,0.00043148,2]
[341238912,1730711466717,-1121.32,0.00043148,2]
[341238913,1730711466725,-500.0,0.00043148,2]